[Event "Early-Titled-Tuesday-Blitz-May-07-2024"]
[Site "Chess.com"]
[Date "2024.05.07"]
[Round "3"]
[White "andriipalchuk"]
[Black "masterofpuppets2"]
[Result "0-1"]
[WhiteElo "2607"]
[BlackElo "2468"]
[TimeControl "180+1"]
[EndTime "8:32:25 PDT"]
[Termination "masterofpuppets2 won on time"]

1. d4 {[%clk 0:03:00.9]} 1... d5 {[%clk 0:02:59.7]} 2. c4 {[%clk 0:03:00.6]}
2... e6 {[%clk 0:02:59.5]} 3. Nf3 {[%clk 0:03:01.3]} 3... Nf6 {[%clk 0:02:59.6]}
4. g3 {[%clk 0:03:01.9]} 4... Be7 {[%clk 0:03:00]} 5. Bg2 {[%clk 0:03:02.6]}
5... O-O {[%clk 0:03:00.7]} 6. O-O {[%clk 0:03:03.3]} 6... dxc4 {[%clk
0:03:01.4]} 7. Qa4 {[%clk 0:03:04]} 7... Qd5 {[%clk 0:03:00.6]} 8. Nc3 {[%clk
0:02:48.2]} 8... Qc6 {[%clk 0:03:00.3]} 9. Qc2 {[%clk 0:02:31.8]} 9... Qa6
{[%clk 0:02:35.8]} 10. Rd1 {[%clk 0:01:25.2]} 10... Nc6 {[%clk 0:02:24.3]} 11.
Bf4 {[%clk 0:01:14.8]} 11... Nb4 {[%clk 0:02:17.3]} 12. Qb1 {[%clk 0:01:12.2]}
12... Nbd5 {[%clk 0:02:16.2]} 13. Bd2 {[%clk 0:00:54.9]} 13... Bd7 {[%clk
0:02:09.8]} 14. Ne5 {[%clk 0:00:54.1]} 14... Rad8 {[%clk 0:02:00.9]} 15. Nxd7
{[%clk 0:00:48.7]} 15... Rxd7 {[%clk 0:01:59.7]} 16. e4 {[%clk 0:00:49.3]} 16...
Nb4 {[%clk 0:01:56.9]} 17. Be3 {[%clk 0:00:32.7]} 17... Ng4 {[%clk 0:01:53.1]}
18. Bf1 {[%clk 0:00:20.4]} 18... Nxe3 {[%clk 0:01:46.9]} 19. fxe3 {[%clk
0:00:21.3]} 19... Bg5 {[%clk 0:01:47.2]} 20. Re1 {[%clk 0:00:21.1]} 20... e5
{[%clk 0:01:34.9]} 21. a3 {[%clk 0:00:20.1]} 21... Nd3 {[%clk 0:01:35.1]} 22.
Bxd3 {[%clk 0:00:20]} 22... cxd3 {[%clk 0:01:36]} 23. d5 {[%clk 0:00:13.9]}
23... d2 {[%clk 0:01:27.3]} 24. Re2 {[%clk 0:00:12.3]} 24... Qh6 {[%clk
0:01:17.9]} 25. Qd3 {[%clk 0:00:10.7]} 25... g6 {[%clk 0:01:06.7]} 26. Qxd2
{[%clk 0:00:10.2]} 26... f5 {[%clk 0:01:07.2]} 27. Rf1 {[%clk 0:00:10]} 27... f4
{[%clk 0:01:04.5]} 28. exf4 {[%clk 0:00:10.2]} 28... exf4 {[%clk 0:01:04.7]} 29.
h4 {[%clk 0:00:05.9]} 29... f3 {[%clk 0:00:48.4]} 30. hxg5 {[%clk 0:00:03.4]}
30... fxe2 {[%clk 0:00:48.4]} 31. Rxf8+ {[%clk 0:00:03.2]} 31... Qxf8 {[%clk
0:00:49.1]} 32. Qxe2 {[%clk 0:00:03.1]} 32... Qc5+ {[%clk 0:00:47.5]} 33. Kg2
{[%clk 0:00:03.4]} 33... c6 {[%clk 0:00:47.9]} 34. Qf3 {[%clk 0:00:02.8]} 34...
Rf7 {[%clk 0:00:45.6]} 35. Qe2 {[%clk 0:00:03.1]} 35... Qd4 {[%clk 0:00:42.8]}
36. dxc6 {[%clk 0:00:02.7]} 36... bxc6 {[%clk 0:00:42.9]} 37. e5 {[%clk
0:00:03.4]} 37... Re7 {[%clk 0:00:43.1]} 38. e6 {[%clk 0:00:03.3]} 38... Qc5
{[%clk 0:00:32.4]} 39. Kh2 {[%clk 0:00:01.9]} 39... Qxg5 {[%clk 0:00:31.8]} 40.
Ne4 {[%clk 0:00:02.2]} 40... Qf5 {[%clk 0:00:30.4]} 41. Qd3 {[%clk 0:00:02.2]}
41... Qxe6 {[%clk 0:00:28.3]} 42. Nc3 {[%clk 0:00:02]} 42... Kg7 {[%clk
0:00:27]} 43. Qd4+ {[%clk 0:00:02.2]} 43... Qe5 {[%clk 0:00:27.5]} 44. Qa4
{[%clk 0:00:02.5]} 44... Qh5+ {[%clk 0:00:25.5]} 45. Kg2 {[%clk 0:00:02.5]}
45... Qc5 {[%clk 0:00:25.6]} 46. Qc2 {[%clk 0:00:02.3]} 46... Rf7 {[%clk
0:00:25.6]} 47. Qe2 {[%clk 0:00:02.4]} 47... h5 {[%clk 0:00:24]} 48. Qd2 {[%clk
0:00:02.2]} 48... Qe5 {[%clk 0:00:23.2]} 49. Qd3 {[%clk 0:00:02.5]} 49... Qf5
{[%clk 0:00:23.1]} 50. Qe3 {[%clk 0:00:02.8]} 50... Qf1+ {[%clk 0:00:22.5]} 51.
Kh2 {[%clk 0:00:03.1]} 51... Rf2+ {[%clk 0:00:23.3]} 0-1

[Event "Early-Titled-Tuesday-Blitz-May-07-2024"]
[Site "Chess.com"]
[Date "2024.05.07"]
[Round "3"]
[White "db-banana"]
[Black "Navyblue1"]
[Result "1-0"]
[WhiteElo "2443"]
[BlackElo "2246"]
[TimeControl "180+1"]
[EndTime "8:32:25 PDT"]
[Termination "db-banana won by resignation"]

1. e4 {[%clk 0:03:00.9]} 1... c5 {[%clk 0:02:47.7]} 2. Nf3 {[%clk 0:03:00.4]}
2... d6 {[%clk 0:02:44.1]} 3. g3 {[%clk 0:02:59.4]} 3... g6 {[%clk 0:02:39.7]}
4. Bg2 {[%clk 0:02:56.2]} 4... Bg7 {[%clk 0:02:40.1]} 5. d3 {[%clk 0:02:56]}
5... Nc6 {[%clk 0:02:37.4]} 6. O-O {[%clk 0:02:56.5]} 6... Nf6 {[%clk
0:02:36.4]} 7. c3 {[%clk 0:02:56.7]} 7... O-O {[%clk 0:02:35.1]} 8. Re1 {[%clk
0:02:57.2]} 8... e5 {[%clk 0:02:30]} 9. Nbd2 {[%clk 0:02:57.3]} 9... Rb8 {[%clk
0:02:27.8]} 10. a4 {[%clk 0:02:57]} 10... a6 {[%clk 0:02:25.4]} 11. Nf1 {[%clk
0:02:26.8]} 11... b5 {[%clk 0:02:04.8]} 12. axb5 {[%clk 0:02:23.6]} 12... axb5
{[%clk 0:02:05.7]} 13. d4 {[%clk 0:02:21.7]} 13... cxd4 {[%clk 0:01:55.5]} 14.
cxd4 {[%clk 0:02:22.6]} 14... exd4 {[%clk 0:01:48.5]} 15. Nxd4 {[%clk
0:02:23.5]} 15... Nxd4 {[%clk 0:01:45.8]} 16. Qxd4 {[%clk 0:02:24.4]} 16... Ng4
{[%clk 0:01:35.1]} 17. Qd1 {[%clk 0:02:16.3]} 17... Ne5 {[%clk 0:01:33.4]} 18.
Ne3 {[%clk 0:02:15.5]} 18... Nc4 {[%clk 0:01:28.8]} 19. Qe2 {[%clk 0:02:08.1]}
19... Be6 {[%clk 0:01:22]} 20. Nd5 {[%clk 0:01:46.2]} 20... Bxd5 {[%clk
0:01:20.3]} 21. exd5 {[%clk 0:01:46.4]} 21... Re8 {[%clk 0:01:18.9]} 22. Qxe8+
{[%clk 0:01:19.1]} 22... Qxe8 {[%clk 0:01:17.9]} 23. Rxe8+ {[%clk 0:01:20]}
23... Rxe8 {[%clk 0:01:17.2]} 24. Bf4 {[%clk 0:01:19]} 24... Bxb2 {[%clk
0:01:08]} 25. Rb1 {[%clk 0:01:14]} 25... Be5 {[%clk 0:01:01.3]} 26. Bxe5 {[%clk
0:00:28.4]} 26... Rxe5 {[%clk 0:01:00.1]} 27. f4 {[%clk 0:00:26.4]} 27... Re2
{[%clk 0:00:54.8]} 28. Rxb5 {[%clk 0:00:26.1]} 28... Ne3 {[%clk 0:00:52.4]} 29.
Bf3 {[%clk 0:00:26.3]} 29... Rd2 {[%clk 0:00:47.3]} 30. Rb6 {[%clk 0:00:25.6]}
30... Nc4 {[%clk 0:00:39.1]} 31. Rc6 {[%clk 0:00:23.8]} 31... Rd4 {[%clk
0:00:37.2]} 32. Kf2 {[%clk 0:00:17.5]} 32... h5 {[%clk 0:00:29.4]} 33. Be2
{[%clk 0:00:17.4]} 33... Nd2 {[%clk 0:00:20.6]} 34. Ke3 {[%clk 0:00:15.6]} 34...
Rxd5 {[%clk 0:00:20]} 35. Rc7 {[%clk 0:00:12.7]} 35... Kg7 {[%clk 0:00:18.9]}
36. h3 {[%clk 0:00:10.5]} 36... Kf6 {[%clk 0:00:18.3]} 37. g4 {[%clk 0:00:10.6]}
37... hxg4 {[%clk 0:00:18.3]} 38. hxg4 {[%clk 0:00:10.9]} 38... Kg7 {[%clk
0:00:18.8]} 39. Ra7 {[%clk 0:00:09.1]} 39... g5 {[%clk 0:00:17.6]} 40. f5 {[%clk
0:00:07.2]} 40... Kf6 {[%clk 0:00:16.2]} 41. Rb7 {[%clk 0:00:06.5]} 41... Nc4+
{[%clk 0:00:13.2]} 42. Bxc4 {[%clk 0:00:05.6]} 42... Re5+ {[%clk 0:00:13.5]} 43.
Kd4 {[%clk 0:00:05.4]} 43... Re7 {[%clk 0:00:11.8]} 44. Rxe7 {[%clk 0:00:04.4]}
44... Kxe7 {[%clk 0:00:12.7]} 45. Kd5 {[%clk 0:00:04.3]} 45... Kd7 {[%clk
0:00:12.4]} 46. Bd3 {[%clk 0:00:05.2]} 46... Kc7 {[%clk 0:00:11.4]} 47. Be4
{[%clk 0:00:06.1]} 47... Kb6 {[%clk 0:00:10]} 48. f6 {[%clk 0:00:07]} 48... Kc7
{[%clk 0:00:10.1]} 49. Bf5 {[%clk 0:00:07.5]} 1-0

[Event "Early-Titled-Tuesday-Blitz-May-07-2024"]
[Site "Chess.com"]
[Date "2024.05.07"]
[Round "3"]
[White "emeli_chess"]
[Black "mary-sanna"]
[Result "1-0"]
[WhiteElo "2418"]
[BlackElo "2221"]
[TimeControl "180+1"]
[EndTime "8:32:27 PDT"]
[Termination "emeli_chess won by resignation"]

1. d4 {[%clk 0:03:00.2]} 1... d5 {[%clk 0:03:00]} 2. c4 {[%clk 0:03:00]} 2... e6
{[%clk 0:02:59.9]} 3. Nc3 {[%clk 0:03:00.2]} 3... Nf6 {[%clk 0:03:00.1]} 4. cxd5
{[%clk 0:03:00.5]} 4... exd5 {[%clk 0:03:01]} 5. Bg5 {[%clk 0:03:00.7]} 5... Be7
{[%clk 0:03:01]} 6. e3 {[%clk 0:03:00.5]} 6... h6 {[%clk 0:03:01]} 7. Bh4 {[%clk
0:03:00]} 7... Bg4 {[%clk 0:03:01.1]} 8. Qb3 {[%clk 0:02:52.5]} 8... Nbd7 {[%clk
0:02:58.9]} 9. Bd3 {[%clk 0:02:29.2]} 9... c5 {[%clk 0:02:52]} 10. dxc5 {[%clk
0:02:13.9]} 10... Nxc5 {[%clk 0:02:51.5]} 11. Bb5+ {[%clk 0:02:11.6]} 11... Kf8
{[%clk 0:02:11]} 12. Qc2 {[%clk 0:02:05.3]} 12... a6 {[%clk 0:02:04.2]} 13. Be2
{[%clk 0:02:02.7]} 13... g5 {[%clk 0:01:42.5]} 14. Bg3 {[%clk 0:01:58.8]} 14...
Kg7 {[%clk 0:01:30.7]} 15. Bxg4 {[%clk 0:01:44.7]} 15... Nxg4 {[%clk 0:01:31.6]}
16. h3 {[%clk 0:01:44.2]} 16... Nf6 {[%clk 0:01:27.9]} 17. Nf3 {[%clk
0:01:29.4]} 17... Qd7 {[%clk 0:01:10.6]} 18. Nd4 {[%clk 0:01:20.9]} 18... Nfe4
{[%clk 0:00:59.3]} 19. Nxe4 {[%clk 0:01:18.2]} 19... dxe4 {[%clk 0:00:50.7]} 20.
O-O {[%clk 0:01:09.2]} 20... Bf6 {[%clk 0:00:33.9]} 21. Qxc5 {[%clk 0:01:06.5]}
21... Rac8 {[%clk 0:00:33.8]} 22. Qd6 {[%clk 0:00:59.9]} 22... Qxd6 {[%clk
0:00:25.9]} 23. Bxd6 {[%clk 0:00:59.4]} 23... Rhd8 {[%clk 0:00:26.8]} 24. Ba3
{[%clk 0:00:59.2]} 24... Bxd4 {[%clk 0:00:25.7]} 25. exd4 {[%clk 0:00:59.1]}
25... Rxd4 {[%clk 0:00:26.6]} 26. Rad1 {[%clk 0:00:57.9]} 26... Rdc4 {[%clk
0:00:26.2]} 27. Rd2 {[%clk 0:00:54.9]} 27... b5 {[%clk 0:00:26]} 28. b3 {[%clk
0:00:52.8]} 28... R4c6 {[%clk 0:00:24]} 29. Bb2+ {[%clk 0:00:51.7]} 29... Kg6
{[%clk 0:00:23.7]} 30. Bd4 {[%clk 0:00:46.2]} 30... f5 {[%clk 0:00:22]} 31. g3
{[%clk 0:00:45.8]} 31... h5 {[%clk 0:00:20.8]} 32. f3 {[%clk 0:00:40.9]} 32...
exf3 {[%clk 0:00:19.6]} 33. Rxf3 {[%clk 0:00:40.5]} 33... Rc1+ {[%clk
0:00:19.2]} 34. Kg2 {[%clk 0:00:40]} 34... Re8 {[%clk 0:00:18.9]} 35. Re3 {[%clk
0:00:35.6]} 35... Rxe3 {[%clk 0:00:17.4]} 36. Bxe3 {[%clk 0:00:35.7]} 36... Re1
{[%clk 0:00:17.3]} 37. Rd6+ {[%clk 0:00:35.2]} 37... Kf7 {[%clk 0:00:17.1]} 38.
Bxg5 {[%clk 0:00:34.9]} 38... Re2+ {[%clk 0:00:17.4]} 39. Kf3 {[%clk 0:00:35.2]}
39... Rxa2 {[%clk 0:00:18.3]} 40. Rf6+ {[%clk 0:00:35]} 40... Kg7 {[%clk
0:00:18.4]} 41. Rxf5 {[%clk 0:00:35.2]} 41... Rb2 {[%clk 0:00:18.1]} 42. Bf6+
{[%clk 0:00:35.4]} 42... Kg6 {[%clk 0:00:18.1]} 43. Bxb2 {[%clk 0:00:36]} 43...
Kxf5 {[%clk 0:00:19]} 44. g4+ {[%clk 0:00:36.4]} 44... hxg4+ {[%clk 0:00:19.1]}
45. hxg4+ {[%clk 0:00:36.7]} 45... Kg5 {[%clk 0:00:20]} 46. Kg3 {[%clk
0:00:36.3]} 46... a5 {[%clk 0:00:20.2]} 47. Bc3 {[%clk 0:00:36]} 47... a4 {[%clk
0:00:20.4]} 48. bxa4 {[%clk 0:00:36.4]} 48... bxa4 {[%clk 0:00:21.3]} 49. Bd2+
{[%clk 0:00:36.5]} 49... Kg6 {[%clk 0:00:21.1]} 50. Kf4 {[%clk 0:00:36.3]} 50...
Kf6 {[%clk 0:00:20.7]} 51. Bc3+ {[%clk 0:00:36.3]} 51... Kg6 {[%clk 0:00:20.2]}
52. g5 {[%clk 0:00:36.2]} 52... a3 {[%clk 0:00:19.8]} 53. Kg4 {[%clk 0:00:36.1]}
53... a2 {[%clk 0:00:20]} 54. Ba1 {[%clk 0:00:36.1]} 54... Kh7 {[%clk
0:00:19.8]} 55. Kf5 {[%clk 0:00:36.2]} 55... Kg8 {[%clk 0:00:18.4]} 56. g6
{[%clk 0:00:36.3]} 56... Kf8 {[%clk 0:00:17.8]} 57. Kf6 {[%clk 0:00:33.6]} 57...
Kg8 {[%clk 0:00:17.2]} 58. g7 {[%clk 0:00:33.4]} 58... Kh7 {[%clk 0:00:17.5]}
59. Kf7 {[%clk 0:00:33.6]} 1-0

[Event "Early-Titled-Tuesday-Blitz-May-07-2024"]
[Site "Chess.com"]
[Date "2024.05.07"]
[Round "3"]
[White "djokovic74"]
[Black "Djager97"]
[Result "1-0"]
[WhiteElo "2817"]
[BlackElo "2569"]
[TimeControl "180+1"]
[EndTime "8:32:31 PDT"]
[Termination "djokovic74 won on time"]

1. e4 {[%clk 0:03:00.9]} 1... e5 {[%clk 0:02:59.7]} 2. Nf3 {[%clk 0:03:01.1]}
2... Nc6 {[%clk 0:03:00.4]} 3. Bb5 {[%clk 0:03:01.1]} 3... a6 {[%clk 0:03:00.6]}
4. Ba4 {[%clk 0:03:01.4]} 4... Nf6 {[%clk 0:03:00.7]} 5. O-O {[%clk 0:03:01.2]}
5... b5 {[%clk 0:03:01.4]} 6. Bb3 {[%clk 0:03:01.3]} 6... Bc5 {[%clk 0:03:02.1]}
7. c3 {[%clk 0:02:54.7]} 7... d6 {[%clk 0:03:02.1]} 8. d4 {[%clk 0:02:55.1]}
8... Bb6 {[%clk 0:03:02.6]} 9. Be3 {[%clk 0:02:55.8]} 9... Bg4 {[%clk
0:02:58.7]} 10. Nbd2 {[%clk 0:02:49.9]} 10... O-O {[%clk 0:02:51.9]} 11. h3
{[%clk 0:02:45.6]} 11... Bxf3 {[%clk 0:02:51.5]} 12. Nxf3 {[%clk 0:02:44]} 12...
exd4 {[%clk 0:01:56.3]} 13. cxd4 {[%clk 0:02:43]} 13... d5 {[%clk 0:01:54]} 14.
e5 {[%clk 0:02:35.6]} 14... Ne4 {[%clk 0:01:54.1]} 15. Rc1 {[%clk 0:02:25.2]}
15... Na5 {[%clk 0:01:53.6]} 16. Nd2 {[%clk 0:01:55.7]} 16... Nxb3 {[%clk
0:01:49.2]} 17. axb3 {[%clk 0:01:54.3]} 17... f5 {[%clk 0:01:24.8]} 18. Nxe4
{[%clk 0:01:44.2]} 18... fxe4 {[%clk 0:01:05.3]} 19. Rc6 {[%clk 0:01:35.6]}
19... Qd7 {[%clk 0:01:04.8]} 20. Qc2 {[%clk 0:01:33.4]} 20... Rf5 {[%clk
0:00:53.3]} 21. Ra1 {[%clk 0:01:08.9]} 21... h6 {[%clk 0:00:46.8]} 22. Rg6
{[%clk 0:00:50.3]} 22... Kh7 {[%clk 0:00:43.2]} 23. Rc6 {[%clk 0:00:50.4]} 23...
Kh8 {[%clk 0:00:31.8]} 24. Rc1 {[%clk 0:00:49.7]} 24... a5 {[%clk 0:00:31.2]}
25. Qe2 {[%clk 0:00:46.2]} 25... Qf7 {[%clk 0:00:20.5]} 26. Qxb5 {[%clk
0:00:36.9]} 26... Rf8 {[%clk 0:00:15.9]} 27. Qe2 {[%clk 0:00:36.2]} 27... Kh7
{[%clk 0:00:14]} 28. R1c2 {[%clk 0:00:23.1]} 28... g5 {[%clk 0:00:10.9]} 29. Qg4
{[%clk 0:00:15]} 29... h5 {[%clk 0:00:10.7]} 30. Qe2 {[%clk 0:00:15.7]} 30...
Rg8 {[%clk 0:00:10.6]} 31. e6 {[%clk 0:00:14.3]} 31... Qe7 {[%clk 0:00:10.3]}
32. Qxh5+ {[%clk 0:00:13.9]} 32... Kg7 {[%clk 0:00:10.7]} 33. Qg4 {[%clk
0:00:06.8]} 33... Kg6 {[%clk 0:00:08.5]} 34. Qg3 {[%clk 0:00:05.1]} 34... Rh8
{[%clk 0:00:06]} 35. Qg4 {[%clk 0:00:03.6]} 35... Rh4 {[%clk 0:00:05.8]} 36. Qg3
{[%clk 0:00:04.2]} 36... Rhf4 {[%clk 0:00:01.9]} 37. Bxf4 {[%clk 0:00:03.8]}
37... Rxf4 {[%clk 0:00:02.8]} 38. h4 {[%clk 0:00:03.2]} 38... Bxd4 {[%clk
0:00:02.4]} 39. Rxc7 {[%clk 0:00:02.3]} 39... Qxe6 {[%clk 0:00:00.9]} 40. R7c6
{[%clk 0:00:02.2]} 40... Bxf2+ {[%clk 0:00:01.4]} 41. Qxf2 {[%clk 0:00:02.2]}
41... Rxf2 {[%clk 0:00:01.8]} 42. Kxf2 {[%clk 0:00:02.8]} 1-0

[Event "Early-Titled-Tuesday-Blitz-May-07-2024"]
[Site "Chess.com"]
[Date "2024.05.07"]
[Round "3"]
[White "Antosha_Chekhonte"]
[Black "chess_sharparchitect"]
[Result "1-0"]
[WhiteElo "2561"]
[BlackElo "2274"]
[TimeControl "180+1"]
[EndTime "8:32:33 PDT"]
[Termination "Antosha_Chekhonte won on time"]

1. e4 {[%clk 0:03:00.9]} 1... c5 {[%clk 0:02:42.5]} 2. Nf3 {[%clk 0:03:00.3]}
2... d6 {[%clk 0:02:42.1]} 3. c3 {[%clk 0:03:00.1]} 3... Nf6 {[%clk 0:02:41]} 4.
Be2 {[%clk 0:03:00.2]} 4... Nc6 {[%clk 0:02:37.4]} 5. d4 {[%clk 0:02:59.8]} 5...
cxd4 {[%clk 0:02:24.6]} 6. cxd4 {[%clk 0:02:59.7]} 6... e6 {[%clk 0:02:12.2]} 7.
Nc3 {[%clk 0:02:59]} 7... Be7 {[%clk 0:02:10.7]} 8. O-O {[%clk 0:02:57.8]} 8...
O-O {[%clk 0:02:07.1]} 9. h3 {[%clk 0:02:57.9]} 9... e5 {[%clk 0:01:49]} 10. d5
{[%clk 0:02:56.4]} 10... Nb8 {[%clk 0:01:48.7]} 11. Be3 {[%clk 0:02:54.1]} 11...
Nbd7 {[%clk 0:01:45.6]} 12. a4 {[%clk 0:02:50.2]} 12... b6 {[%clk 0:01:38]} 13.
b4 {[%clk 0:02:47.3]} 13... Ne8 {[%clk 0:01:24.9]} 14. a5 {[%clk 0:02:46.2]}
14... f5 {[%clk 0:01:12.5]} 15. axb6 {[%clk 0:02:43.3]} 15... Nxb6 {[%clk
0:01:11.9]} 16. exf5 {[%clk 0:02:31.7]} 16... Bxf5 {[%clk 0:01:08.9]} 17. Bd3
{[%clk 0:02:25.4]} 17... Bxd3 {[%clk 0:00:58.9]} 18. Qxd3 {[%clk 0:02:25.2]}
18... Nf6 {[%clk 0:00:59.4]} 19. Ng5 {[%clk 0:02:22.9]} 19... Qd7 {[%clk
0:00:41.1]} 20. Ra6 {[%clk 0:02:17.6]} 20... Rab8 {[%clk 0:00:26]} 21. Rfa1
{[%clk 0:02:16.2]} 21... Rb7 {[%clk 0:00:25.4]} 22. Bxb6 {[%clk 0:01:59.8]}
22... axb6 {[%clk 0:00:24]} 23. Nb5 {[%clk 0:01:42.6]} 23... e4 {[%clk
0:00:21.7]} 24. Qe2 {[%clk 0:01:27.4]} 24... Nxd5 {[%clk 0:00:17.6]} 25. Qc4
{[%clk 0:01:21.3]} 25... Qf5 {[%clk 0:00:13.3]} 26. Nxe4 {[%clk 0:01:20.8]}
26... Rc8 {[%clk 0:00:11]} 27. Ra8 {[%clk 0:01:14.7]} 27... Rbb8 {[%clk
0:00:09.1]} 28. Rxb8 {[%clk 0:01:10.5]} 28... Rxb8 {[%clk 0:00:10]} 29. Rd1
{[%clk 0:01:02.6]} 29... h6 {[%clk 0:00:08.8]} 30. Qxd5+ {[%clk 0:01:00.6]}
30... Qxd5 {[%clk 0:00:09.1]} 31. Rxd5 {[%clk 0:01:01.5]} 31... Rc8 {[%clk
0:00:09.2]} 32. Nexd6 {[%clk 0:00:58.8]} 32... Rc1+ {[%clk 0:00:08.6]} 33. Kh2
{[%clk 0:00:58.1]} 33... Rc2 {[%clk 0:00:08.7]} 34. Nf5 {[%clk 0:00:54.9]} 34...
Bxb4 {[%clk 0:00:07.2]} 35. Rd7 {[%clk 0:00:48.4]} 35... Rxf2 {[%clk 0:00:04.1]}
36. Rxg7+ {[%clk 0:00:44.6]} 36... Kf8 {[%clk 0:00:04]} 37. Nbd4 {[%clk
0:00:43.9]} 37... Bd6+ {[%clk 0:00:02.1]} 38. Kg1 {[%clk 0:00:43.5]} 38... Rd2
{[%clk 0:00:01.2]} 39. Rd7 {[%clk 0:00:39.7]} 39... Bc5 {[%clk 0:00:00.7]} 40.
Kf1 {[%clk 0:00:32.8]} 40... Bxd4 {[%clk 0:00:01.6]} 41. Rxd4 {[%clk 0:00:27.8]}
41... Rc2 {[%clk 0:00:01.8]} 42. Nxh6 {[%clk 0:00:26.7]} 42... Rb2 {[%clk
0:00:01.4]} 43. Rd7 {[%clk 0:00:24.7]} 43... Ke8 {[%clk 0:00:01.6]} 44. Rb7
{[%clk 0:00:24.3]} 44... b5 {[%clk 0:00:02.2]} 45. g4 {[%clk 0:00:20.3]} 45...
Kd8 {[%clk 0:00:03.1]} 46. g5 {[%clk 0:00:19.3]} 46... Rb3 {[%clk 0:00:03.4]}
47. Kg2 {[%clk 0:00:18.8]} 47... Rb2+ {[%clk 0:00:03.3]} 48. Kg3 {[%clk
0:00:18.8]} 48... b4 {[%clk 0:00:03.9]} 49. g6 {[%clk 0:00:18.5]} 49... Rb1
{[%clk 0:00:03.7]} 50. Ng4 {[%clk 0:00:17.7]} 50... Ke8 {[%clk 0:00:02.6]} 51.
g7 {[%clk 0:00:17.3]} 51... Rb3+ {[%clk 0:00:02]} 52. Kh4 {[%clk 0:00:17.1]} 1-0

[Event "Early-Titled-Tuesday-Blitz-May-07-2024"]
[Site "Chess.com"]
[Date "2024.05.07"]
[Round "3"]
[White "Rakhmanov_Aleksandr"]
[Black "Semetey"]
[Result "1-0"]
[WhiteElo "2860"]
[BlackElo "2582"]
[TimeControl "180+1"]
[EndTime "8:32:34 PDT"]
[Termination "Rakhmanov_Aleksandr won by checkmate"]

1. c4 {[%clk 0:03:00.9]} 1... c5 {[%clk 0:02:42.6]} 2. Nc3 {[%clk 0:02:59.2]}
2... Nc6 {[%clk 0:02:41.7]} 3. g3 {[%clk 0:02:58.1]} 3... g6 {[%clk 0:02:41.2]}
4. Bg2 {[%clk 0:02:58.4]} 4... Bg7 {[%clk 0:02:41.9]} 5. b3 {[%clk 0:02:58.8]}
5... Nh6 {[%clk 0:02:38.5]} 6. Ba3 {[%clk 0:02:56.2]} 6... d6 {[%clk 0:02:37]}
7. e3 {[%clk 0:02:56.1]} 7... Nf5 {[%clk 0:02:36.4]} 8. Nge2 {[%clk 0:02:53]}
8... h5 {[%clk 0:02:34.5]} 9. h3 {[%clk 0:02:47.7]} 9... Bd7 {[%clk 0:02:27.3]}
10. d3 {[%clk 0:02:40.5]} 10... e6 {[%clk 0:02:25.4]} 11. Qd2 {[%clk 0:02:35.2]}
11... a6 {[%clk 0:02:23.8]} 12. Bb2 {[%clk 0:02:34.9]} 12... Qa5 {[%clk
0:02:14.4]} 13. Rd1 {[%clk 0:02:16]} 13... O-O {[%clk 0:01:56.1]} 14. O-O {[%clk
0:02:06.3]} 14... Rab8 {[%clk 0:01:40.2]} 15. Qc1 {[%clk 0:01:31.5]} 15... b5
{[%clk 0:01:38.4]} 16. Qa1 {[%clk 0:00:58.3]} 16... Qd8 {[%clk 0:01:18.4]} 17.
Ne4 {[%clk 0:00:52.7]} 17... Bxb2 {[%clk 0:01:10.5]} 18. Qxb2 {[%clk 0:00:53.6]}
18... f6 {[%clk 0:00:50.8]} 19. Nf4 {[%clk 0:00:38.4]} 19... Kg7 {[%clk
0:00:47.4]} 20. Qe2 {[%clk 0:00:36.1]} 20... Qe7 {[%clk 0:00:45.8]} 21. Rd2
{[%clk 0:00:31.5]} 21... Rh8 {[%clk 0:00:25.8]} 22. Rfd1 {[%clk 0:00:30.4]}
22... Be8 {[%clk 0:00:22.8]} 23. d4 {[%clk 0:00:21.1]} 23... cxd4 {[%clk
0:00:22.5]} 24. exd4 {[%clk 0:00:22]} 24... Bf7 {[%clk 0:00:20]} 25. d5 {[%clk
0:00:12]} 25... exd5 {[%clk 0:00:20.9]} 26. Nxd5 {[%clk 0:00:12.4]} 26... Bxd5
{[%clk 0:00:20.6]} 27. Rxd5 {[%clk 0:00:13.3]} 27... Nb4 {[%clk 0:00:13.7]} 28.
R5d2 {[%clk 0:00:09.3]} 28... bxc4 {[%clk 0:00:13.5]} 29. bxc4 {[%clk
0:00:09.4]} 29... Rhd8 {[%clk 0:00:12.2]} 30. Qf3 {[%clk 0:00:07.2]} 30... a5
{[%clk 0:00:12.1]} 31. Qa3 {[%clk 0:00:05.3]} 31... Qc7 {[%clk 0:00:11.2]} 32.
Qc3 {[%clk 0:00:04.7]} 32... Qe7 {[%clk 0:00:09.4]} 33. a3 {[%clk 0:00:05.3]}
33... Nc6 {[%clk 0:00:09.2]} 34. Nxf6 {[%clk 0:00:05.6]} 34... Qxf6 {[%clk
0:00:09.7]} 35. Qxf6+ {[%clk 0:00:06.5]} 35... Kxf6 {[%clk 0:00:10.6]} 36. Bxc6
{[%clk 0:00:07]} 36... Rb3 {[%clk 0:00:10]} 37. a4 {[%clk 0:00:06.1]} 37... Rc3
{[%clk 0:00:10.3]} 38. Bb5 {[%clk 0:00:06.6]} 38... Rb3 {[%clk 0:00:06.7]} 39.
Kg2 {[%clk 0:00:05.9]} 39... Ke6 {[%clk 0:00:05.6]} 40. Re2+ {[%clk 0:00:06]}
40... Kf6 {[%clk 0:00:06.1]} 41. Rdd2 {[%clk 0:00:06.5]} 41... Rc3 {[%clk
0:00:06]} 42. Re4 {[%clk 0:00:06.6]} 42... Rc8 {[%clk 0:00:06.1]} 43. Rf4 {[%clk
0:00:06.3]} 43... Kg5 {[%clk 0:00:05.5]} 44. h4+ {[%clk 0:00:05.7]} 44... Kf6
{[%clk 0:00:05.6]} 45. Rxd6+ {[%clk 0:00:06.2]} 45... Ke5 {[%clk 0:00:05.2]} 46.
Rxg6 {[%clk 0:00:06]} 46... Rc2 {[%clk 0:00:04.9]} 47. Bd7 {[%clk 0:00:05.4]}
47... Rf8 {[%clk 0:00:05.1]} 48. Re6# {[%clk 0:00:05.4]} 1-0